bitfinex/quotes_BTCUSD_20220212
["timestamp","ask_amount","ask_price","bid_price","bid_amount"]
[1644688042508,0.00072638,42680.0,42676.0,0.06878446]
[1644688043307,0.0002574,42680.0,42676.0,0.06878446]
[1644688043507,0.00072654,42680.0,42676.0,0.06878446]
[1644688043910,0.00094893,42680.0,42676.0,0.06878446]
[1644688044109,0.00072654,42680.0,42676.0,0.06878446]
[1644688044511,0.0002574,42680.0,42676.0,0.06878446]
[1644688044909,0.00072654,42680.0,42676.0,0.06878446]
[1644688045711,0.0002574,42680.0,42676.0,0.06878446]
[1644688045963,0.00072654,42680.0,42676.0,0.26810597]
[1644688046566,0.00072654,42680.0,42677.0,0.19932151]
[1644688046964,0.0002574,42680.0,42677.0,0.19932151]
[1644688047866,0.0002574,42680.0,42676.0,0.26810597]
[1644688048066,0.00047979,42680.0,42676.0,0.26810597]
[1644688048365,0.0002574,42680.0,42676.0,0.26810597]
[1644688048566,0.00047979,42680.0,42676.0,0.26810597]
[1644688048767,0.0002574,42680.0,42676.0,0.26810597]
[1644688048966,0.00047979,42680.0,42676.0,0.26810597]
[1644688049167,0.0002574,42680.0,42676.0,0.26810597]
[1644688049367,0.00047979,42680.0,42676.0,0.26810597]
[1644688049568,0.00072653,42680.0,42676.0,0.26810597]
[1644688050012,0.20671531,42678.0,42676.0,0.19932151]
[1644688050612,0.00022239,42679.0,42676.0,0.25791151]
[1644688050810,0.00046914,42679.0,42676.0,0.25791151]
[1644688051011,0.45607751,42684.0,42677.0,0.3]
[1644688051211,0.00022375,42680.0,42677.0,0.3]
[1644688051412,0.45607751,42684.0,42676.0,0.25791151]
[1644688051613,0.00022375,42683.0,42676.0,0.25791151]
[1644688052013,0.00022375,42683.0,42676.0,0.05859]
[1644688052213,0.26192347,42679.0,42676.0,0.25799312]
[1644688052416,0.26192347,42679.0,42676.0,0.05859]
[1644688052913,0.26192347,42679.0,42676.0,0.2579926]
[1644688053116,0.26192347,42679.0,42676.0,0.05859]
[1644688053457,0.00022375,42680.0,42676.0,0.25799266]
[1644688053658,0.00022375,42682.0,42676.0,0.05859]
[1644688053959,0.00022375,42683.0,42676.0,0.05859]
[1644688054159,0.25755246,42684.0,42677.0,0.19940034]
[1644688054358,0.00050783,42681.0,42677.0,0.19940034]
[1644688054558,0.00050783,42681.0,42679.0,0.08263244]
[1644688054758,0.00050783,42681.0,42677.0,0.08540922]
[1644688054759,0.08799475,42678.0,42677.0,0.08540922]
[1644688054960,0.08799475,42678.0,42677.0,0.28480861]
[1644688055759,0.08799475,42678.0,42677.0,0.19939939]
[1644688056760,0.08799475,42678.0,42677.0,0.28357569]
[1644688058412,0.08299475,42678.0,42677.0,0.28357569]
[1644688059015,0.08299475,42678.0,42677.0,0.33332818]
[1644688059415,0.08299475,42678.0,42677.0,0.1309763]
[1644688059615,0.00022375,42680.0,42679.0,0.117143]
[1644688059816,0.00050782,42681.0,42679.0,0.240323]
[1644688060014,0.00050782,42681.0,42680.0,0.52850341]
[1644688060216,0.00022375,42686.0,42680.0,0.77344285]
[1644688060414,0.00022375,42687.0,42686.0,0.06659983]
[1644688060615,0.00022375,42688.0,42686.0,0.11339983]
[1644688060814,0.01022375,42689.0,42687.0,0.2391347]
[1644688061258,0.01,42689.0,42687.0,0.2391347]
[1644688062459,0.01,42689.0,42687.0,0.22778768]
[1644688062658,0.01,42689.0,42688.0,0.0468]
[1644688065009,0.01,42689.0,42688.0,0.34094667]
[1644688066007,0.01,42689.0,42688.0,0.0468]
[1644688070462,0.01,42689.0,42688.0,0.32694769]
[1644688071063,0.01,42689.0,42688.0,0.0468]
[1644688072308,0.01,42689.0,42688.0,0.32895532]
[1644688075413,0.01,42689.0,42688.0,0.0468]
[1644688078263,0.005,42689.0,42688.0,0.0468]
[1644688080513,0.005,42689.0,42686.0,0.058571]
[1644688081115,0.00522411,42689.0,42686.0,0.058571]
[1644688081314,0.005,42689.0,42686.0,0.058571]
[1644688082317,0.00522411,42689.0,42686.0,0.058571]
[1644688082517,0.00522411,42689.0,42687.0,0.08959587]
[1644688083320,0.005,42689.0,42687.0,0.08959587]
[1644688083763,0.00522411,42689.0,42687.0,0.08959587]
[1644688084462,0.00389846,42689.0,42687.0,0.08959587]
[1644688084760,0.00367435,42689.0,42687.0,0.08959587]
[1644688084960,0.00389846,42689.0,42687.0,0.08959587]
[1644688085763,0.00367435,42689.0,42687.0,0.08959587]
[1644688085963,0.00389846,42689.0,42687.0,0.08959587]
[1644688086764,0.01089846,42689.0,42687.0,0.08959587]
[1644688086963,0.01067435,42689.0,42687.0,0.08959587]
[1644688087209,0.01089846,42689.0,42687.0,0.08959587]
[1644688088108,0.01067435,42689.0,42687.0,0.08959587]
[1644688088509,0.01089846,42689.0,42687.0,0.08959587]
[1644688089309,0.01067435,42689.0,42687.0,0.08959587]
[1644688089511,0.01089846,42689.0,42687.0,0.08959587]
[1644688090514,0.01067435,42689.0,42687.0,0.08959587]
[1644688090715,0.01089846,42689.0,42687.0,0.08959587]
[1644688091766,0.01067435,42689.0,42687.0,0.08959587]
[1644688091966,0.01089846,42689.0,42687.0,0.08959587]
[1644688092966,0.01067435,42689.0,42687.0,0.08959587]
[1644688093167,0.01089846,42689.0,42687.0,0.08959587]
[1644688094169,0.01067435,42689.0,42687.0,0.08959587]
[1644688094368,0.01089846,42689.0,42687.0,0.08959587]
[1644688094719,0.01089846,42689.0,42687.0,0.13959587]
[1644688094914,0.00022499,42689.0,42688.0,0.1874]
[1644688095117,0.0030374,42697.0,42694.0,0.08560417]
[1644688095118,0.00022499,42696.0,42694.0,0.08560417]
[1644688095314,0.0030374,42697.0,42695.0,0.0468]
[1644688095518,0.00022499,42696.0,42695.0,0.0468]
[1644688095715,0.00022499,42696.0,42695.0,0.24493676]
[1644688095917,0.0030374,42697.0,42695.0,0.24493676]
[1644688096317,0.001,42697.0,42695.0,0.24493676]
[1644688096617,0.001,42697.0,42695.0,0.30349276]
[1644688096819,0.00122499,42697.0,42695.0,0.30349276]
[1644688097416,0.00122499,42697.0,42695.0,0.56005828]
[1644688097616,0.001,42697.0,42695.0,0.56005828]
[1644688098017,0.00122499,42697.0,42695.0,0.56005828]
[1644688098218,0.00122499,42697.0,42695.0,0.77840832]
[1644688098469,0.00122499,42697.0,42695.0,0.30349276]
[1644688098766,0.00122499,42697.0,42695.0,0.105356]
[1644688098968,0.001,42697.0,42695.0,0.105356]
[1644688099169,0.05719237,42694.0,42690.0,0.24892921]
[1644688099473,0.05719237,42694.0,42689.0,0.18609948]
[1644688099474,0.34126399,42693.0,42689.0,0.18609948]
[1644688099668,0.22786132,42692.0,42689.0,0.18609948]
[1644688099867,0.22808631,42692.0,42687.0,0.18609948]
[1644688100068,0.22808631,42692.0,42686.0,0.42460421]
[1644688100870,0.22808631,42692.0,42687.0,0.24892921]
[1644688101271,0.22808631,42692.0,42690.0,0.058567]
[1644688101571,0.00050996,42691.0,42690.0,0.058567]
[1644688102221,0.22808631,42692.0,42690.0,0.058567]
[1644688102418,0.00022499,42692.0,42690.0,0.058567]
[1644688102715,0.08002399,42693.0,42690.0,0.058567]
[1644688102716,0.08075893,42693.0,42690.0,0.058567]
[1644688102916,0.08075893,42693.0,42690.0,0.30749621]
[1644688103116,0.08075893,42693.0,42690.0,0.058567]
[1644688103515,0.00022499,42693.0,42690.0,0.058567]
[1644688103717,0.05719237,42694.0,42691.0,0.24892921]
[1644688103915,0.00022499,42693.0,42691.0,0.24892921]
[1644688104116,0.05770231,42694.0,42691.0,0.24892921]
[1644688104315,0.00022499,42693.0,42691.0,0.24892921]
[1644688104518,0.05770231,42694.0,42690.0,0.30749621]
[1644688104716,0.00022499,42693.0,42691.0,0.24892921]
[1644688104916,0.0577023,42694.0,42693.0,0.00010887]
[1644688105316,0.1472446,42694.0,42693.0,0.00010887]
[1644688105971,0.14673467,42694.0,42693.0,0.00010887]
[1644688107575,0.14673467,42694.0,42693.0,0.19937966]
[1644688108274,0.14673467,42694.0,42693.0,0.00010887]
[1644688109911,0.14173467,42694.0,42693.0,0.00010887]
[1644688112015,0.14173467,42694.0,42693.0,0.19937859]
[1644688112614,0.14173467,42694.0,42693.0,0.00010887]
[1644688113467,0.13673467,42694.0,42693.0,0.00010887]
[1644688113667,0.13673467,42694.0,42693.0,0.19938807]
[1644688113966,0.13673467,42694.0,42693.0,0.00010887]
[1644688116267,0.13673467,42694.0,42693.0,0.24920599]
[1644688116268,0.04719237,42694.0,42693.0,0.24920599]
[1644688116469,0.04719237,42694.0,42693.0,0.00010887]
[1644688116967,0.04719237,42694.0,42693.0,0.04690887]
[1644688119314,0.04719237,42694.0,42693.0,0.10546987]
[1644688122570,0.04719237,42694.0,42693.0,0.83465321]
[1644688122867,0.04719237,42694.0,42693.0,1.20397231]
[1644688123067,0.04719237,42694.0,42693.0,1.05986269]
[1644688123466,0.04719237,42694.0,42693.0,0.49156935]
[1644688123870,0.04719237,42694.0,42693.0,0.87373598]
[1644688124068,0.04719237,42694.0,42693.0,0.96151732]
[1644688124270,0.04719237,42694.0,42693.0,1.1476168]
[1644688125121,0.04418691,42694.0,42693.0,1.1476168]
[1644688125919,0.04418691,42694.0,42693.0,1.15207659]
[1644688128322,0.04418691,42694.0,42693.0,0.57935069]
[1644688128565,0.04418691,42694.0,42693.0,0.96513439]
[1644688128766,0.04418691,42694.0,42693.0,0.39325121]
[1644688129065,0.04418691,42694.0,42693.0,0.57935069]
[1644688129266,0.03630718,42694.0,42693.0,0.39325121]
[1644688129468,0.00050992,42696.0,42695.0,0.04478078]
[1644688129667,0.00050992,42696.0,42695.0,0.32037429]
[1644688129866,0.001,42697.0,42695.0,0.60647377]
[1644688130067,0.001,42697.0,42695.0,0.61169299]
[1644688130269,0.001,42697.0,42696.0,0.23062172]
[1644688130467,0.001,42697.0,42696.0,0.62602937]
[1644688130666,0.001,42697.0,42696.0,0.81212885]
[1644688130867,0.001,42697.0,42696.0,0.33289948]
[1644688131266,0.001,42697.0,42696.0,0.1468]
[1644688131867,0.001,42697.0,42696.0,0.0468]
[1644688132322,0.001,42697.0,42696.0,0.1874]
[1644688132521,0.001,42697.0,42696.0,0.76714738]
[1644688132821,0.001,42697.0,42696.0,1.05324686]
[1644688133219,0.001,42697.0,42696.0,0.47349948]
[1644688133419,0.001,42697.0,42696.0,1.05325369]
[1644688134221,0.001,42697.0,42696.0,0.47349948]
[1644688134421,0.001,42697.0,42696.0,1.01324579]
[1644688136162,0.001,42697.0,42696.0,0.47273858]
[1644688136964,0.001,42697.0,42696.0,0.33213858]
[1644688137266,0.001,42697.0,42696.0,0.23213858]
[1644688137464,0.001,42697.0,42696.0,0.0460391]
[1644688138464,0.001,42697.0,42696.0,0.29500849]
[1644688138665,0.001,42697.0,42695.0,0.24896939]
[1644688138666,0.07676984,42697.0,42695.0,0.24896939]
[1644688138865,0.08476984,42697.0,42695.0,0.24820487]
[1644688140326,0.08499496,42697.0,42695.0,0.24820487]
[1644688141124,0.08476984,42697.0,42695.0,0.24820487]
[1644688141322,0.08499496,42697.0,42695.0,0.24820487]
[1644688142126,0.08499496,42697.0,42694.0,0.03362666]
[1644688142324,0.08476984,42697.0,42694.0,0.03362666]
[1644688142524,0.08499496,42697.0,42694.0,0.03362666]
[1644688143329,0.08476984,42697.0,42694.0,0.03362666]
[1644688143767,0.08499496,42697.0,42694.0,0.03362666]
[1644688144567,0.08476984,42697.0,42694.0,0.03362666]
[1644688144769,0.08499496,42697.0,42694.0,0.03362666]
[1644688145168,0.03494003,42697.0,42694.0,0.03362666]
[1644688145368,0.00822512,42697.0,42694.0,0.03362666]
[1644688145569,0.00822512,42697.0,42694.0,0.31647181]
[1644688145769,0.008,42697.0,42694.0,0.31647181]
[1644688145971,0.00822512,42697.0,42694.0,0.03362666]
[1644688146168,0.00822512,42697.0,42694.0,0.31484933]
[1644688146369,0.26245641,42704.0,42696.0,0.19524632]
[1644688146570,0.26245641,42704.0,42700.0,0.19918813]
[1644688146770,0.00122573,42703.0,42700.0,0.19918813]
[1644688146968,0.00122573,42703.0,42701.0,0.19918813]
[1644688147716,0.00122573,42703.0,42702.0,0.19918813]
[1644688147917,0.001,42703.0,42702.0,0.19918813]
[1644688148117,0.001,42703.0,42701.0,0.058555]
[1644688148318,0.00122573,42703.0,42701.0,0.058555]
[1644688148520,0.00122573,42703.0,42701.0,0.25773525]
[1644688149618,0.00122573,42703.0,42702.0,0.19918025]
[1644688149820,0.001,42703.0,42702.0,0.19918025]
[1644688150019,0.001,42703.0,42701.0,0.058555]
[1644688150220,0.00122573,42703.0,42701.0,0.058555]
[1644688150420,0.00122573,42703.0,42702.0,0.058553]
[1644688150622,0.001,42703.0,42702.0,0.058553]
[1644688150821,0.00022573,42704.0,42702.0,0.058553]
[1644688151068,0.00073514,42705.0,42703.0,0.19917821]
[1644688151367,0.00022573,42704.0,42703.0,0.19917821]
[1644688151666,0.00022573,42705.0,42703.0,0.19917821]
[1644688151865,0.00169372,42706.0,42703.0,0.19917821]
[1644688152066,0.00022573,42705.0,42703.0,0.19917821]
[1644688152265,0.00169372,42706.0,42703.0,0.19917821]
[1644688152866,0.00122573,42706.0,42703.0,0.19917821]
[1644688157722,0.08302086,42707.0,42704.0,0.19917821]
[1644688157922,0.08349164,42707.0,42704.0,0.19917821]
[1644688158765,0.08349164,42707.0,42705.0,0.20384564]
[1644688158766,0.08302086,42707.0,42705.0,0.20384564]
[1644688159166,0.09777271,42709.0,42705.0,0.20384564]
[1644688159367,0.011,42709.0,42705.0,0.20384564]
[1644688159767,0.011,42709.0,42705.0,0.40302385]
[1644688161969,0.01122584,42709.0,42705.0,0.40302385]
[1644688162614,0.01122584,42709.0,42706.0,0.19917821]
[1644688163215,0.01122584,42709.0,42705.0,0.40302385]
[1644688163415,0.00622584,42709.0,42705.0,0.40302385]
[1644688163915,0.00622584,42709.0,42706.0,0.19917821]
[1644688165118,0.00622584,42709.0,42705.0,0.40302385]
[1644688165317,0.00622584,42709.0,42705.0,0.19917821]
[1644688165720,0.00622584,42709.0,42707.0,0.19917821]
[1644688166570,0.00622584,42709.0,42708.0,0.19917821]
[1644688166871,0.006,42709.0,42708.0,0.19917821]
[1644688169721,0.006,42709.0,42707.0,0.44334627]
[1644688169918,0.006,42709.0,42708.0,0.19917821]
[1644688169919,0.00622584,42709.0,42708.0,0.19917821]
[1644688170119,0.006,42709.0,42708.0,0.19917821]
[1644688172021,0.006,42709.0,42707.0,0.44334627]
[1644688172217,0.00622584,42709.0,42707.0,0.44334627]
[1644688174165,0.00622584,42709.0,42707.0,0.19917821]
[1644688174967,0.00622584,42709.0,42706.0,0.19917821]
[1644688175266,0.00622584,42709.0,42708.0,0.26220632]
[1644688175467,0.006,42709.0,42708.0,0.26220632]
[1644688177314,0.006,42709.0,42707.0,0.19917821]
[1644688177513,0.00622584,42709.0,42707.0,0.19917821]
[1644688179018,0.00622584,42709.0,42704.0,0.51446679]
[1644688179818,0.00622584,42709.0,42705.0,0.24897711]
[1644688180018,0.00622584,42709.0,42706.0,0.24897711]
[1644688181463,0.00622584,42709.0,42707.0,0.24897711]
[1644688182563,0.00387645,42709.0,42707.0,0.24897711]
[1644688186620,0.00387645,42709.0,42706.0,0.24897711]
[1644688187022,0.00387645,42709.0,42705.0,0.24897711]
[1644688188220,0.00387645,42709.0,42706.0,0.24897711]
[1644688189078,0.00387645,42709.0,42704.0,0.35733636]
[1644688190781,0.00387645,42709.0,42704.0,0.058551]
[1644688190981,0.00387645,42709.0,42704.0,0.35733636]
[1644688193715,0.00387645,42709.0,42705.0,0.29878536]
[1644688196968,0.00387645,42709.0,42706.0,0.29878536]
[1644688197168,0.00387645,42709.0,42708.0,0.29878536]
[1644688197367,0.00365061,42709.0,42708.0,0.35732836]
[1644688197567,0.00365061,42709.0,42708.0,0.35740342]
[1644688198770,0.00365061,42709.0,42708.0,0.058543]
[1644688198969,0.00365061,42709.0,42708.0,0.35740342]
[1644688199169,0.00365061,42709.0,42708.0,0.058543]
[1644688200318,0.00365061,42709.0,42706.0,0.169587]
[1644688200518,0.00365061,42709.0,42707.0,0.0525]
[1644688200519,0.00387645,42709.0,42707.0,0.0525]
[1644688201717,0.00387645,42709.0,42707.0,0.058548]
[1644688201919,0.00387645,42709.0,42703.0,0.82557945]
[1644688203321,0.00380969,42709.0,42704.0,0.058547]
[1644688203566,0.00380969,42709.0,42704.0,0.40712992]
[1644688204168,0.00380969,42709.0,42706.0,0.29887582]
[1644688206368,0.00380969,42709.0,42704.0,0.4849753]
[1644688206570,0.327976,42707.0,42704.0,0.18609948]
[1644688206771,0.327976,42707.0,42699.0,0.00051325]
[1644688206772,0.53164901,42700.0,42699.0,0.00051325]
[1644688206969,0.53164901,42700.0,42697.0,0.18609948]
[1644688207227,0.79399709,42700.0,42699.0,0.00051325]
[1644688207923,0.84399709,42700.0,42699.0,0.00051325]
[1644688208123,1.34763309,42700.0,42699.0,0.00051325]
[1644688208426,1.01965709,42700.0,42697.0,0.00050009]
[1644688208621,0.05,42698.0,42697.0,0.00050009]
[1644688209422,0.05,42698.0,42689.0,0.3]
[1644688209621,0.06600578,42695.0,42688.0,0.34858292]
[1644688209824,0.05,42698.0,42688.0,0.45531275]
[1644688210024,0.05,42698.0,42688.0,0.40715692]
[1644688210626,0.05,42698.0,42688.0,0.058574]
[1644688210825,0.05,42698.0,42691.0,0.00050013]
[1644688211079,0.05,42698.0,42688.0,0.05407413]
[1644688211777,0.21556648,42692.0,42688.0,0.05407413]
[1644688211974,0.21556648,42692.0,42686.0,0.54017413]
[1644688212174,0.21556648,42692.0,42687.0,0.18609948]
[1644688212375,0.21556648,42692.0,42686.0,0.42402061]
[1644688213175,0.28928798,42697.0,42686.0,0.42402061]
[1644688213379,0.33928798,42697.0,42684.0,0.4657744]
[1644688213580,0.33928798,42697.0,42683.0,0.00025141]
[1644688213581,0.0525,42696.0,42683.0,0.00025141]
[1644688213777,0.327976,42695.0,42682.0,0.00025141]
[1644688213976,0.42931798,42697.0,42682.0,0.00025141]
[1644688213977,0.0525,42694.0,42682.0,0.00025141]
[1644688214178,0.42931798,42697.0,42684.0,0.2313725]
[1644688214179,0.20679331,42692.0,42684.0,0.2313725]
[1644688214379,0.0525,42691.0,42684.0,0.2313725]
[1644688214579,0.0525,42691.0,42682.0,0.00025141]
[1644688214580,0.24392581,42691.0,42682.0,0.00025141]
[1644688215226,0.24392581,42691.0,42681.0,0.34888081]
[1644688215423,0.24392581,42691.0,42681.0,0.00025141]
[1644688215723,0.24392581,42691.0,42684.0,0.25898527]
[1644688216127,0.24392581,42691.0,42684.0,0.00051282]
[1644688216723,0.24392581,42691.0,42680.0,0.00025141]
[1644688216926,0.24392581,42691.0,42685.0,0.00051282]
[1644688217925,0.24392581,42691.0,42682.0,0.00025141]
[1644688218125,0.24392581,42691.0,42686.0,0.00051281]
[1644688218326,0.0525,42691.0,42686.0,0.00051281]
[1644688218969,0.0525,42691.0,42684.0,0.00025141]
[1644688219168,0.261062,42690.0,42686.0,0.00051281]
[1644688220169,0.261062,42690.0,42684.0,0.00025141]
[1644688220370,0.261062,42690.0,42686.0,0.00051281]
[1644688221472,0.261062,42690.0,42684.0,0.00025141]
[1644688221672,0.261062,42690.0,42686.0,0.00051281]
[1644688222730,0.261062,42690.0,42684.0,0.00025141]
[1644688222922,0.05,42698.0,42687.0,0.058573]
[1644688222923,0.30665844,42696.0,42687.0,0.058573]
[1644688223119,0.05,42698.0,42687.0,0.058573]
[1644688223318,0.31366995,42698.0,42688.0,0.0525]
[1644688223618,0.26366995,42698.0,42688.0,0.0525]
[1644688223821,0.26366995,42698.0,42694.0,0.24968094]
[1644688224218,0.26366995,42698.0,42695.0,0.058563]
[1644688224617,0.26366995,42698.0,42694.0,0.24968094]
[1644688225420,0.00051267,42701.0,42694.0,0.24968094]
[1644688225721,0.00051267,42701.0,42695.0,0.111063]
[1644688226174,0.25851106,42703.0,42695.0,0.111063]
[1644688226674,0.05,42704.0,42695.0,0.111063]
[1644688226675,0.00051267,42701.0,42695.0,0.111063]
[1644688227474,0.31406292,42704.0,42695.0,0.111063]
[1644688227674,0.00051267,42701.0,42695.0,0.111063]
[1644688228676,0.31406292,42704.0,42695.0,0.111063]
[1644688228875,0.00051267,42701.0,42695.0,0.111063]
[1644688229735,0.00051267,42701.0,42698.0,0.0724732]
[1644688229933,0.26406292,42704.0,42698.0,0.0724732]
[1644688230130,0.00051267,42701.0,42698.0,0.0724732]
[1644688230533,0.00051267,42701.0,42695.0,0.111063]
[1644688231134,0.49620865,42704.0,42695.0,0.0525]
[1644688231333,0.00051267,42701.0,42695.0,0.0525]
[1644688231834,0.53155637,42700.0,42695.0,0.0525]
[1644688232834,0.53155637,42700.0,42696.0,0.058563]
[1644688233034,0.53155637,42700.0,42697.0,0.0525]
[1644688234073,0.53155637,42700.0,42698.0,0.06805128]
[1644688234678,0.53155637,42700.0,42699.0,0.0525]
[1644688237324,0.53155637,42700.0,42699.0,0.111055]
[1644688237724,0.53155637,42700.0,42699.0,0.161055]
[1644688237921,0.53155637,42700.0,42699.0,0.111055]
[1644688241574,0.53155637,42700.0,42699.0,0.0525]
[1644688242174,0.53155637,42700.0,42699.0,0.111055]
[1644688243777,0.53255637,42700.0,42699.0,0.111055]
[1644688243979,0.53155637,42700.0,42699.0,0.111055]
[1644688246322,0.53155637,42700.0,42699.0,0.51460447]
[1644688246722,0.53155637,42700.0,42699.0,0.61460447]
[1644688247927,0.53155637,42700.0,42699.0,0.56460447]
[1644688248126,0.53155637,42700.0,42699.0,0.111055]
[1644688248776,0.53155637,42700.0,42699.0,0.058555]
[1644688248976,0.53155637,42700.0,42699.0,0.3664315]
[1644688249175,0.53155637,42700.0,42699.0,0.4664315]
[1644688249377,0.53155637,42700.0,42699.0,0.5664315]
[1644688249576,0.53155637,42700.0,42699.0,0.6189315]
[1644688249975,0.53155637,42700.0,42699.0,0.311055]
[1644688250379,0.53155637,42700.0,42699.0,0.211055]
[1644688250676,0.53155637,42700.0,42699.0,0.311055]
[1644688251480,6.6e-06,42700.0,42699.0,1.017255]
[1644688251677,6.6e-06,42700.0,42699.0,1.43973356]
[1644688251877,6.6e-06,42700.0,42699.0,1.56461744]
[1644688252079,6.6e-06,42700.0,42699.0,1.72752334]
[1644688252321,6.6e-06,42700.0,42699.0,1.35424534]
[1644688252521,6.6e-06,42700.0,42699.0,1.3207609]
[1644688253322,6.6e-06,42700.0,42699.0,1.2707609]
[1644688254123,6.6e-06,42700.0,42699.0,1.1301609]
[1644688254527,6.6e-06,42700.0,42699.0,0.967255]
[1644688254922,6.6e-06,42700.0,42699.0,1.13009941]
[1644688255122,6.6e-06,42700.0,42699.0,0.967255]
[1644688255322,6.6e-06,42700.0,42699.0,1.13009941]
[1644688258176,6.6e-06,42700.0,42699.0,0.967255]
[1644688259475,6.6e-06,42702.0,42699.0,0.967255]
[1644688259721,6.6e-06,42702.0,42699.0,0.767255]
[1644688259922,0.00022584,42708.0,42699.0,0.767255]
[1644688260124,0.00380969,42709.0,42699.0,0.767255]
[1644688260325,0.00380969,42709.0,42703.0,0.21572831]
[1644688260522,0.00380969,42709.0,42704.0,0.058551]
[1644688261323,0.00380969,42709.0,42705.0,0.0525]
[1644688262724,0.00428342,42709.0,42705.0,0.0525]
[1644688263574,0.00380969,42709.0,42705.0,0.0525]
[1644688263774,0.00428342,42709.0,42705.0,0.0525]
[1644688264779,0.00380969,42709.0,42705.0,0.0525]
[1644688264976,0.0042834,42709.0,42705.0,0.0525]
[1644688266077,0.00380969,42709.0,42705.0,0.1025]
[1644688266279,0.0042834,42709.0,42705.0,0.1025]
[1644688267079,0.00380969,42709.0,42705.0,0.1025]
[1644688267624,0.0042834,42709.0,42705.0,0.1025]
[1644688268023,0.0042834,42709.0,42705.0,0.38454407]
[1644688268225,0.0042834,42709.0,42705.0,0.48454407]
[1644688268428,0.00380969,42709.0,42705.0,0.2025]
[1644688268626,0.0042834,42709.0,42705.0,0.2025]
[1644688269325,0.0042834,42709.0,42705.0,0.1025]
[1644688269527,0.00380969,42709.0,42705.0,0.1025]
[1644688269926,0.0042834,42709.0,42705.0,0.1025]
[1644688270727,0.00380969,42709.0,42705.0,0.1025]
[1644688270976,0.0042834,42709.0,42705.0,0.1078834]
[1644688272073,0.00380969,42709.0,42705.0,0.0578834]
[1644688272278,0.0042834,42709.0,42705.0,0.0578834]
[1644688273175,0.00380969,42709.0,42705.0,0.0578834]
[1644688273578,0.0042834,42709.0,42705.0,0.0578834]
[1644688274477,0.00380969,42709.0,42705.0,0.0578834]
[1644688274720,0.0042834,42709.0,42705.0,0.0578834]
[1644688274921,0.0042834,42709.0,42705.0,0.0283567]
[1644688275619,0.00380969,42709.0,42705.0,0.0283567]
[1644688275820,0.0042834,42709.0,42705.0,0.0283567]
[1644688276621,0.0042834,42709.0,42705.0,0.6845567]
[1644688276820,0.00380969,42709.0,42705.0,0.6845567]
[1644688277023,0.0042834,42709.0,42705.0,0.6845567]
[1644688278022,0.00380969,42709.0,42705.0,0.6845567]
[1644688278222,0.0042834,42709.0,42705.0,0.6845567]
[1644688279092,0.00380969,42709.0,42705.0,0.6845567]
[1644688279492,0.0042834,42709.0,42705.0,0.6845567]
[1644688280293,0.00380969,42709.0,42705.0,0.6845567]
[1644688280694,0.0042834,42709.0,42705.0,0.6845567]
[1644688281693,0.00380969,42709.0,42705.0,0.6845567]
[1644688281895,0.00380969,42709.0,42705.0,0.8845567]
[1644688281896,0.0042834,42709.0,42705.0,0.8845567]
[1644688282725,0.00380969,42709.0,42705.0,0.8845567]
[1644688283128,0.0042834,42709.0,42705.0,0.8845567]
[1644688283431,0.3837,42719.0,42711.0,0.058532]
[1644688283432,0.01,42719.0,42711.0,0.058532]
[1644688283630,0.01,42719.0,42717.0,0.6562]
[1644688283830,0.01022687,42719.0,42718.0,0.0525]
[1644688284030,0.01,42719.0,42718.0,0.0525]
[1644688284228,0.01,42719.0,42718.0,0.31379668]
[1644688285232,0.01,42719.0,42718.0,0.30532379]
[1644688285431,0.01,42719.0,42718.0,0.24679279]
[1644688289574,0.005,42719.0,42718.0,0.24679279]
[1644688294775,0.005,42719.0,42718.0,0.0525]
[1644688313142,0.005,42719.0,42714.0,0.05902529]
[1644688313339,0.005,42719.0,42714.0,0.00048929]
[1644688313540,0.05,42718.0,42714.0,0.00048929]
[1644688313740,0.05,42718.0,42706.0,0.65911723]
[1644688313741,0.00097858,42710.0,42706.0,0.65911723]
[1644688313945,0.00097858,42710.0,42706.0,0.35911723]
[1644688314139,0.00097858,42710.0,42706.0,0.42466466]
[1644688314341,0.00097858,42710.0,42706.0,0.35911723]
[1644688314740,0.00097858,42710.0,42706.0,0.24071723]
[1644688315342,0.00097858,42710.0,42706.0,0.058547]
[1644688318079,0.00097858,42710.0,42706.0,0.0590619]
[1644688318283,0.00097858,42710.0,42706.0,0.0005149]
[1644688318981,0.00097858,42710.0,42705.0,0.66111066]
[1644688319179,0.00097858,42710.0,42706.0,0.0005149]
[1644688319829,0.00097858,42710.0,42706.0,0.0590619]
[1644688320028,0.00097858,42710.0,42706.0,0.33708291]
[1644688320232,0.00097858,42710.0,42706.0,0.51976804]
[1644688320430,0.00097858,42710.0,42706.0,0.71976804]
[1644688320630,0.00097858,42710.0,42706.0,0.66976804]
[1644688321231,0.00097858,42710.0,42706.0,0.51925314]
[1644688321431,0.00097858,42710.0,42706.0,0.51976804]
[1644688321631,0.00097858,42710.0,42706.0,0.61976804]
[1644688321834,0.00097858,42710.0,42706.0,0.51976804]
[1644688322031,0.00097858,42710.0,42706.0,0.24123213]
[1644688322434,0.00097858,42710.0,42706.0,0.058547]
[1644688322634,0.00097858,42710.0,42706.0,0.0590619]
[1644688323133,0.00097858,42710.0,42706.0,0.24123213]
[1644688323776,0.00097858,42710.0,42706.0,0.34071723]
[1644688323976,0.00097858,42710.0,42706.0,0.71463427]
[1644688324178,0.00097858,42710.0,42706.0,0.78974116]
[1644688324376,0.00097858,42710.0,42708.0,0.117073]
[1644688324577,0.00097858,42710.0,42709.0,0.30892132]
[1644688324777,0.00097858,42710.0,42709.0,0.40892132]
[1644688325076,0.00097858,42710.0,42709.0,0.1]
[1644688325676,0.00097858,42710.0,42709.0,0.158536]
[1644688326077,0.00097858,42710.0,42709.0,0.058536]
[1644688326477,0.00097858,42710.0,42709.0,0.36448546]
[1644688326678,0.00097858,42710.0,42709.0,0.158536]
[1644688326878,0.00097858,42710.0,42709.0,0.34070623]
[1644688327079,0.00097858,42710.0,42709.0,0.158536]
[1644688327731,0.00097858,42710.0,42709.0,0.058536]
[1644688329029,0.00097858,42710.0,42709.0,0.108536]
[1644688329729,0.00097858,42710.0,42709.0,0.161036]
[1644688331080,0.00097858,42710.0,42709.0,0.16185099]
[1644688338334,0.00091802,42710.0,42709.0,0.16185099]
[1644688339782,0.00091802,42710.0,42709.0,0.53526087]
[1644688339982,0.02862111,42719.0,42718.0,0.06974115]
[1644688340383,0.02862111,42719.0,42718.0,0.12305614]
[1644688340979,0.02862111,42719.0,42718.0,0.17305614]
[1644688346484,0.02862111,42719.0,42718.0,0.12305614]
[1644688348684,0.02862111,42719.0,42718.0,0.17305614]
[1644688349924,0.02862111,42719.0,42718.0,0.10331499]
[1644688350128,0.02862111,42719.0,42718.0,0.00081499]